[Event "25th Bosnjaci Open 2020"]
[Site "Bosnjaci"]
[Date "2020.01.06"]
[Round "5.8"]
[White "Rosic, Slavko S"]
[Black "Tomas, Ante"]
[Result "1-0"]
[ECO "C45"]
[WhiteElo "2295"]
[BlackElo "2157"]
[Annotator "ChessBase"]
[PlyCount "169"]
[EventDate "2020.01.03"]
[EventType "swiss"]
[EventCountry "CRO"]
[SourceTitle "playchess.com"]
[Source "ChessBase"]
[SourceQuality "1"]
[TimeControl "5400+30"]

1. e4 {[%emt 0:00:30]} e5 {[%emt 0:00:30]} 2. Nf3 {[%emt 0:00:00]} Nc6 {[%emt 0:00:00]} 3. d4 {[%emt 0:00:00]} exd4 {[%emt 0:00:00]} 4. Nxd4 {[%emt 0:00:30]} Nf6 {[%emt 0:00:00]} 5. Nxc6 {[%emt 0:03:30]} bxc6 {[%emt 0:00:00]} 6. Bd3 {[%emt 0:00:30]} d5 {[%emt 0:00:30]} 7. e5 {[%emt 0:00:30]} Ng4 {[%emt 0:00:00]} 8. Bf4 {[%emt 0:11:30]} Bc5 {[%emt 0:10:00]} 9. O-O {[%emt 0:01:30]} g5 {[%emt 0:02:30]} 10. Bg3 {[%emt 0:05:30]} h5 {[%emt 0:01:30]} 11. Be2 {[%emt 0:00:30]} f5 {[%emt 0:14:30]} 12. exf6 {[%emt 0:00:30]} Qxf6 {[%emt 0:02:30]} 13. Bxg4 {[%emt 0:06:30]} Bxg4 {[%emt 0:00:30]} 14. Qe1+ {[%emt 0:00:30]} Qe7 {[%emt 0:17:30]} 15. Qxe7+ {[%emt 0:00:30]} Kxe7 {[%emt 0:00:30]} 16. Nd2 {[%emt 0:09:30]} Kd7 {[%emt 0:07:30]} 17. Nb3 {[%emt 0:00:30]} Bb6 {[%emt 0:03:30]} 18. h3 {[%emt 0:04:30]} Bf5 {[%emt 0:02:30]} 19. c3 {[%emt 0:00:30]} Rae8 {[%emt 0:04:30]} 20. Rfe1 {[%emt 0:08:30]} Rxe1+ {[%emt 0:05:30]} 21. Rxe1 {[%emt 0:00:30]} Re8 {[%emt 0:01:30]} 22. Be5 {[%emt 0:08:30]} c5 {[%emt 0:03:30]} 23. Re3 {[%emt 0:14:30]} c4 {[%emt 0:03:21]} 24. Nd4 {[%emt 0:00:30]} Be4 {[%emt 0:06:14]} 25. Bf6 {[%emt 0:01:30]} c5 {[%emt 0:06:57]} 26. Ne2 {[%emt 0:07:26]} Bd8 {[%emt 0:04:08]} 27. Bxd8 {[%emt 0:01:13]} Rxd8 {[%emt 0:00:34]} 28. Ng3 {[%emt 0:00:30]} Bb1 {[%emt 0:00:43]} 29. Re5 {[%emt 0:00:14]} Kc6 {[%emt 0:01:55]} 30. Rxg5 {[%emt 0:00:36]} d4 {[%emt 0:00:42]} 31. a4 {[%emt 0:04:43]} d3 {[%emt 0:00:20]} 32. Ne4 {[%emt 0:00:17]} d2 {[%emt 0:00:34]} 33. Rxc5+ {[%emt 0:00:07]} Kb6 {[%emt 0:00:26]} 34. Rb5+ {[%emt 0:00:42]} Kc7 {[%emt 0:00:40]} 35. Rc5+ {[%emt 0:00:55]} Kb6 {[%emt 0:00:30]} 36. Rb5+ {[%emt 0:00:50]} Kc7 {[%emt 0:00:03]} 37. Nxd2 {[%emt 0:00:22]} Rxd2 {[%emt 0:00:07]} 38. Rxh5 {[%emt 0:00:30]} Bd3 {[%emt 0:01:58]} 39. Rb5 {[%emt 0:00:13]} a6 {[%emt 0:00:17]} 40. Rb4 {[%emt 0:00:08]} Kc6 {[%emt 0:00:54]} 41. g4 {[%emt 0:00:30]} Rd1+ {[%emt 0:00:24]} 42. Kg2 {[%emt 0:00:16]} Bf1+ {[%emt 0:00:07]} 43. Kg3 {[%emt 0:00:09]} a5 {[%emt 0:00:36]} 44. Rb5 {[%emt 0:00:29]} Rd3+ {[%emt 0:00:07]} 45. f3 {[%emt 0:00:20]} Be2 {[%emt 0:00:18]} 46. Rf5 {[%emt 0:00:10]} Bd1 {[%emt 0:00:35]} 47. g5 {[%emt 0:00:43]} Bxa4 {[%emt 0:00:09]} 48. Rxa5 {[%emt 0:00:09]} Bd1 {[%emt 0:00:26]} 49. Rf5 {[%emt 0:00:09]} Kd6 {[%emt 0:01:00]} 50. h4 {[%emt 0:00:53]} Ke6 {[%emt 0:00:52]} 51. Rf4 {[%emt 0:00:22]} Bb3 {[%emt 0:01:02]} 52. g6 {[%emt 0:00:34]} Rd1 {[%emt 0:00:21]} 53. h5 {[%emt 0:01:13]} Rh1 {[%emt 0:00:24]} 54. Rg4 {[%emt 0:00:15]} Bc2 {[%emt 0:00:22]} 55. Kg2 {[%emt 0:02:22]} Rxh5 {[%emt 0:00:08]} 56. g7 {[%emt 0:00:08]} Bh7 {[%emt 0:00:03]} 57. g8=Q+ {[%emt 0:00:10]} Bxg8 {[%emt 0:00:01]} 58. Rxg8 {[%emt 0:00:08]} Rb5 {[%emt 0:00:37]} 59. Re8+ {[%emt 0:00:13]} Kf5 {[%emt 0:00:07]} 60. Re2 {[%emt 0:00:00]} Rb8 {[%emt 0:00:32]} 61. Re4 {[%emt 0:00:36]} Rc8 {[%emt 0:00:36]} 62. Kf2 {[%emt 0:00:07]} Rc7 {[%emt 0:01:05]} 63. Ke3 {[%emt 0:00:04]} Rc8 {[%emt 0:00:05]} 64. Kd4 {[%emt 0:00:02]} Rc7 {[%emt 0:00:06]} 65. Kd5 {[%emt 0:00:58]} Rb7 {[%emt 0:00:22]} 66. Rxc4 {[%emt 0:00:33]} Rxb2 {[%emt 0:00:01]} 67. Rc8 {[%emt 0:00:07]} Rd2+ {[%emt 0:00:10]} 68. Kc5 {[%emt 0:00:08]} Ke6 {[%emt 0:01:49]} 69. c4 {[%emt 0:00:08]} Kd7 {[%emt 0:00:11]} 70. Rf8 {[%emt 0:00:02]} Rh2 {[%emt 0:01:15]} 71. Rf7+ {[%emt 0:00:25]} Kc8 {[%emt 0:00:14]} 72. f4 {[%emt 0:00:06]} Rh6 {[%emt 0:00:49]} 73. f5 {[%emt 0:00:11]} Kd8 {[%emt 0:00:17]} 74. Kd5 {[%emt 0:00:12]} Ke8 {[%emt 0:00:10]} 75. Ra7 {[%emt 0:00:05]} Kd8 {[%emt 0:00:14]} 76. c5 {[%emt 0:00:48]} Kc8 {[%emt 0:00:05]} 77. Rg7 {[%emt 0:00:08]} Kb8 {[%emt 0:00:12]} 78. Ke5 {[%emt 0:00:27]} Rc6 {[%emt 0:00:08]} 79. f6 {[%emt 0:00:27]} Rxc5+ {[%emt 0:00:18]} 80. Kd6 {[%emt 0:00:02]} Rc1 {[%emt 0:00:17]} 81. f7 {[%emt 0:00:13]} Rd1+ {[%emt 0:00:04]} 82. Kc5 {[%emt 0:00:00]} Rc1+ {[%emt 0:00:06]} 83. Kd4 {[%emt 0:00:05]} Rd1+ {[%emt 0:00:05]} 84. Ke3 {[%emt 0:00:05]} Rf1 {[%emt 0:00:09]} 85. Rg8+ {[%emt 0:00:07]} 1-0

[Event "25th Bosnjaci Open 2020"]
[Site "Bosnjaci"]
[Date "2020.01.06"]
[Round "5.10"]
[White "Matanovic, Luka"]
[Black "Draganic, Stjepan"]
[Result "1/2-1/2"]
[ECO "B13"]
[WhiteElo "2256"]
[BlackElo "2112"]
[Annotator "ChessBase"]
[PlyCount "119"]
[EventDate "2020.01.03"]
[EventType "swiss"]
[EventCountry "CRO"]
[SourceTitle "playchess.com"]
[Source "ChessBase"]
[SourceQuality "1"]
[TimeControl "5400+30"]

1. e4 {[%emt 0:00:30]} c6 {[%emt 0:00:30]} 2. d4 {[%emt 0:00:00]} d5 {[%emt 0:00:00]} 3. exd5 {[%emt 0:00:00]} cxd5 {[%emt 0:00:00]} 4. c3 {[%emt 0:01:30]} Nf6 {[%emt 0:01:30]} 5. Bd3 {[%emt 0:00:30]} Nc6 {[%emt 0:01:30]} 6. Bf4 {[%emt 0:01:30]} g6 {[%emt 0:04:30]} 7. h3 {[%emt 0:02:30]} Bg7 {[%emt 0:01:30]} 8. Nf3 {[%emt 0:00:30]} O-O {[%emt 0:00:30]} 9. O-O {[%emt 0:02:30]} Bf5 {[%emt 0:16:30]} 10. Re1 {[%emt 0:06:30]} Bxd3 {[%emt 0:01:30]} 11. Qxd3 {[%emt 0:00:30]} Ne4 {[%emt 0:01:30]} 12. Nbd2 {[%emt 0:04:30]} Nxd2 {[%emt 0:02:30]} 13. Nxd2 {[%emt 0:03:30]} Re8 {[%emt 0:02:30]} 14. Nb3 {[%emt 0:12:30]} Na5 {[%emt 0:08:30]} 15. Qb5 {[%emt 0:03:30]} Nc4 {[%emt 0:06:30]} 16. Nc5 {[%emt 0:05:30]} Qb6 {[%emt 0:05:30]} 17. a4 {[%emt 0:05:30]} Nxb2 {[%emt 0:05:30]} 18. Reb1 {[%emt 0:15:30]} Qxb5 {[%emt 0:01:30]} 19. axb5 {[%emt 0:00:00]} Nc4 {[%emt 0:06:30]} 20. Nxb7 {[%emt 0:01:00]} e5 {[%emt 0:01:30]} 21. dxe5 {[%emt 0:01:30]} Reb8 {[%emt 0:08:30]} 22. Na5 {[%emt 0:08:30]} Bxe5 {[%emt 0:10:58]} 23. Bxe5 {[%emt 0:03:30]} Nxe5 {[%emt 0:00:20]} 24. f4 {[%emt 0:00:30]} Nc4 {[%emt 0:01:44]} 25. Nxc4 {[%emt 0:00:39]} dxc4 {[%emt 0:00:02]} 26. Ra4 {[%emt 0:00:21]} Rc8 {[%emt 0:03:17]} 27. Rbb4 {[%emt 0:00:30]} Rcb8 {[%emt 0:01:06]} 28. Ra5 {[%emt 0:00:30]} Rc8 {[%emt 0:03:27]} 29. Rba4 {[%emt 0:02:36]} Rab8 {[%emt 0:00:11]} 30. Rxa7 {[%emt 0:03:14]} Rxb5 {[%emt 0:00:08]} 31. Ra8 {[%emt 0:00:11]} Rbc5 {[%emt 0:00:29]} 32. Rxc8+ {[%emt 0:00:00]} Rxc8 {[%emt 0:00:01]} 33. Kf2 {[%emt 0:00:25]} Kg7 {[%emt 0:00:29]} 34. Ke3 {[%emt 0:00:52]} Re8+ {[%emt 0:00:42]} 35. Kf3 {[%emt 0:01:16]} Rc8 {[%emt 0:00:12]} 36. g4 {[%emt 0:00:10]} Rd8 {[%emt 0:02:46]} 37. Rxc4 {[%emt 0:01:44]} Rd3+ {[%emt 0:00:06]} 38. Kg2 {[%emt 0:00:17]} Kf6 {[%emt 0:00:59]} 39. Rc6+ {[%emt 0:01:13]} Ke7 {[%emt 0:00:06]} 40. g5 {[%emt 0:00:14]} Kd7 {[%emt 0:00:23]} 41. Rc4 {[%emt 0:00:27]} Ke6 {[%emt 0:00:20]} 42. Rc7 {[%emt 0:00:14]} Rd2+ {[%emt 0:01:06]} 43. Kg3 {[%emt 0:00:14]} Rd3+ {[%emt 0:00:16]} 44. Kh4 {[%emt 0:02:25]} Rf3 {[%emt 0:00:34]} 45. Kg4 {[%emt 0:00:42]} Rd3 {[%emt 0:00:06]} 46. Rc6+ {[%emt 0:02:17]} Kd7 {[%emt 0:00:16]} 47. Rc4 {[%emt 0:00:19]} Re3 {[%emt 0:01:00]} 48. Rd4+ {[%emt 0:02:43]} Ke6 {[%emt 0:00:56]} 49. c4 {[%emt 0:02:04]} f5+ {[%emt 0:00:21]} 50. gxf6 {[%emt 0:01:01]} h5+ {[%emt 0:01:11]} 51. Kg5 {[%emt 0:00:57]} Rg3+ {[%emt 0:00:50]} 52. Kh6 {[%emt 0:01:46]} Kxf6 {[%emt 0:00:40]} 53. c5 {[%emt 0:02:22]} Rxh3 {[%emt 0:00:33]} 54. Rc4 {[%emt 0:01:14]} Ra3 {[%emt 0:00:12]} 55. c6 {[%emt 0:00:05]} Ra8 {[%emt 0:00:17]} 56. Kh7 {[%emt 0:00:24]} Rc8 {[%emt 0:00:53]} 57. c7 {[%emt 0:00:10]} h4 {[%emt 0:00:08]} 58. Rc3 {[%emt 0:01:07]} h3 {[%emt 0:00:56]} 59. Rxh3 {[%emt 0:00:30]} Rxc7+ {[%emt 0:00:36]} 60. Kh6 {[%emt 0:00:30]} 1/2-1/2

[Event "25th Bosnjaci Open 2020"]
[Site "Bosnjaci"]
[Date "2020.01.06"]
[Round "5.11"]
[White "Sadikovic, Jasmin"]
[Black "Andrijevic, Milan"]
[Result "0-1"]
[ECO "B48"]
[WhiteElo "2111"]
[BlackElo "2223"]
[Annotator "ChessBase"]
[PlyCount "116"]
[EventDate "2020.01.03"]
[EventType "swiss"]
[EventCountry "CRO"]
[SourceTitle "playchess.com"]
[Source "ChessBase"]
[SourceQuality "1"]
[TimeControl "5400+30"]

1. e4 {[%emt 0:00:30]} c5 {[%emt 0:05:30]} 2. Nf3 {[%emt 0:00:00]} a6 {[%emt 0:00:30]} 3. d4 {[%emt 0:00:00]} cxd4 {[%emt 0:00:30]} 4. Nxd4 {[%emt 0:00:30]} e6 {[%emt 0:00:00]} 5. Be2 {[%emt 0:00:30]} Nc6 {[%emt 0:00:00]} 6. Nc3 {[%emt 0:00:30]} Qc7 {[%emt 0:00:30]} 7. O-O {[%emt 0:00:30]} Nf6 {[%emt 0:00:30]} 8. Be3 {[%emt 0:01:30]} Bb4 {[%emt 0:00:30]} 9. f3 {[%emt 0:11:30]} O-O {[%emt 0:01:30]} 10. Nxc6 {[%emt 0:08:30]} bxc6 {[%emt 0:01:30]} 11. a3 {[%emt 0:05:30]} Be7 {[%emt 0:01:30]} 12. f4 {[%emt 0:03:30]} d6 {[%emt 0:03:30]} 13. Qe1 {[%emt 0:04:30]} Bb7 {[%emt 0:08:30]} 14. Bf3 {[%emt 0:07:30]} c5 {[%emt 0:09:30]} 15. Rd1 {[%emt 0:01:30]} Rfe8 {[%emt 0:05:30]} 16. Qg3 {[%emt 0:02:30]} Nd7 {[%emt 0:01:30]} 17. Bh5 {[%emt 0:02:30]} Bf8 {[%emt 0:05:30]} 18. Rf2 {[%emt 0:07:30]} g6 {[%emt 0:02:30]} 19. Bf3 {[%emt 0:02:30]} Bc6 {[%emt 0:02:30]} 20. Bc1 {[%emt 0:00:00]} Bg7 {[%emt 0:04:30]} 21. Re2 {[%emt 0:12:00]} Rad8 {[%emt 0:03:30]} 22. Rde1 {[%emt 0:01:30]} Nb6 {[%emt 0:01:30]} 23. f5 {[%emt 0:04:30]} Nd7 {[%emt 0:08:30]} 24. fxe6 {[%emt 0:02:30]} fxe6 {[%emt 0:00:30]} 25. h4 {[%emt 0:00:32]} Ne5 {[%emt 0:03:30]} 26. h5 {[%emt 0:01:26]} Qf7 {[%emt 0:02:30]} 27. Rf1 {[%emt 0:04:15]} Rf8 {[%emt 0:04:30]} 28. h6 {[%emt 0:01:08]} Bf6 {[%emt 0:02:30]} 29. Kh1 {[%emt 0:02:31]} Qe7 {[%emt 0:01:30]} 30. Qh3 {[%emt 0:01:06]} Rf7 {[%emt 0:01:45]} 31. Nd1 {[%emt 0:01:20]} Rdf8 {[%emt 0:01:36]} 32. Ref2 {[%emt 0:01:26]} Nxf3 {[%emt 0:02:58]} 33. gxf3 {[%emt 0:01:49]} Bd4 {[%emt 0:00:58]} 34. Re2 {[%emt 0:01:01]} Bb5 {[%emt 0:00:25]} 35. Ref2 {[%emt 0:01:22]} Bxf1 {[%emt 0:00:45]} 36. Rxf1 {[%emt 0:00:06]} Be5 {[%emt 0:01:41]} 37. Qg4 {[%emt 0:00:32]} Bf4 {[%emt 0:00:50]} 38. Ne3 {[%emt 0:03:24]} Bxh6 {[%emt 0:01:26]} 39. Nd5 {[%emt 0:03:16]} exd5 {[%emt 0:00:13]} 40. Bxh6 {[%emt 0:00:05]} Re8 {[%emt 0:00:48]} 41. exd5 {[%emt 0:00:14]} Qe2 {[%emt 0:02:44]} 42. Qh3 {[%emt 0:02:03]} Rf5 {[%emt 0:00:24]} 43. Rg1 {[%emt 0:00:52]} Qxf3+ {[%emt 0:00:41]} 44. Qxf3 {[%emt 0:00:10]} Rxf3 {[%emt 0:00:05]} 45. Kg2 {[%emt 0:00:25]} Rf5 {[%emt 0:00:30]} 46. c4 {[%emt 0:00:18]} Re2+ {[%emt 0:01:44]} 47. Kg3 {[%emt 0:00:08]} Rxb2 {[%emt 0:00:36]} 48. Re1 {[%emt 0:00:07]} Kf7 {[%emt 0:00:12]} 49. Re6 {[%emt 0:00:09]} Rb3+ {[%emt 0:01:00]} 50. Kg4 {[%emt 0:00:23]} Rf6 {[%emt 0:00:58]} 51. Re2 {[%emt 0:00:17]} Rc3 {[%emt 0:01:14]} 52. Re4 {[%emt 0:00:15]} Rd3 {[%emt 0:00:49]} 53. Be3 {[%emt 0:00:59]} Rf1 {[%emt 0:03:37]} 54. Bf4 {[%emt 0:01:17]} Rg1+ {[%emt 0:01:09]} 55. Kh4 {[%emt 0:00:12]} g5+ {[%emt 0:00:57]} 56. Bxg5 {[%emt 0:00:08]} Rd4 {[%emt 0:00:06]} 57. Rxd4 {[%emt 0:00:14]} cxd4 {[%emt 0:00:03]} 58. Bf4 {[%emt 0:00:12]} Ke7 {[%emt 0:00:20]} 0-1

[Event "25th Bosnjaci Open 2020"]
[Site "Bosnjaci"]
[Date "2020.01.06"]
[Round "5.12"]
[White "Muskinja, Luka"]
[Black "Sipic, Hrvoje"]
[Result "1/2-1/2"]
[ECO "B50"]
[WhiteElo "1901"]
[BlackElo "2210"]
[Annotator "ChessBase"]
[PlyCount "36"]
[EventDate "2020.01.03"]
[EventType "swiss"]
[EventCountry "CRO"]
[SourceTitle "playchess.com"]
[Source "ChessBase"]
[SourceQuality "1"]
[TimeControl "5400+30"]

1. e4 {[%emt 0:00:30]} c5 {[%emt 0:00:30]} 2. Nf3 {[%emt 0:00:00]} d6 {[%emt 0:00:00]} 3. Bc4 {[%emt 0:00:00]} Nf6 {[%emt 0:00:00]} 4. Qe2 {[%emt 0:00:30]} Nc6 {[%emt 0:00:30]} 5. c3 {[%emt 0:00:00]} a6 {[%emt 0:00:30]} 6. Bb3 {[%emt 0:02:00]} e6 {[%emt 0:01:30]} 7. O-O {[%emt 0:01:30]} Be7 {[%emt 0:00:30]} 8. d4 {[%emt 0:03:30]} O-O {[%emt 0:05:30]} 9. Rd1 {[%emt 0:06:30]} cxd4 {[%emt 0:07:30]} 10. cxd4 {[%emt 0:00:30]} d5 {[%emt 0:00:30]} 11. e5 {[%emt 0:00:30]} Ne4 {[%emt 0:01:30]} 12. Bc2 {[%emt 0:00:30]} f5 {[%emt 0:02:30]} 13. exf6 {[%emt 0:00:30]} Nxf6 {[%emt 0:02:30]} 14. Nc3 {[%emt 0:04:30]} Bd6 {[%emt 0:08:30]} 15. Ne5 {[%emt 0:02:30]} Qe8 {[%emt 0:10:30]} 16. f4 {[%emt 0:24:30]} Qh5 {[%emt 0:03:30]} 17. Qxh5 {[%emt 0:00:30]} Nxh5 {[%emt 0:00:00]} 18. g3 {[%emt 0:00:30]} Nf6 {[%emt 0:08:00]} 1/2-1/2

[Event "25th Bosnjaci Open 2020"]
[Site "Bosnjaci"]
[Date "2020.01.06"]
[Round "6.4"]
[White "Andrijevic, Milan"]
[Black "Rosic, Slavko S"]
[Result "0-1"]
[ECO "B84"]
[WhiteElo "2223"]
[BlackElo "2295"]
[Annotator "ChessBase"]
[PlyCount "118"]
[EventDate "2020.01.03"]
[EventType "swiss"]
[EventCountry "CRO"]
[SourceTitle "playchess.com"]
[Source "ChessBase"]
[SourceQuality "1"]
[TimeControl "5400+30"]

1. e4 {[%emt 0:00:30]} c5 {[%emt 0:00:30]} 2. Nf3 {[%emt 0:00:30]} d6 {[%emt 0:00:00]} 3. d4 {[%emt 0:00:30]} cxd4 {[%emt 0:00:00]} 4. Nxd4 {[%emt 0:00:00]} Nf6 {[%emt 0:00:30]} 5. Nc3 {[%emt 0:00:00]} a6 {[%emt 0:00:00]} 6. Be2 {[%emt 0:00:30]} e6 {[%emt 0:00:00]} 7. O-O {[%emt 0:00:30]} Qc7 {[%emt 0:00:30]} 8. f4 {[%emt 0:00:30]} b6 {[%emt 0:00:30]} 9. Bf3 {[%emt 0:02:30]} Bb7 {[%emt 0:00:30]} 10. e5 {[%emt 0:01:30]} dxe5 {[%emt 0:04:30]} 11. fxe5 {[%emt 0:00:30]} Nfd7 {[%emt 0:00:30]} 12. Bxb7 {[%emt 0:01:30]} Qxb7 {[%emt 0:00:30]} 13. Qh5 {[%emt 0:01:30]} g6 {[%emt 0:00:30]} 14. Qh4 {[%emt 0:01:30]} Bc5 {[%emt 0:00:30]} 15. Be3 {[%emt 0:02:30]} Nc6 {[%emt 0:00:30]} 16. Kh1 {[%emt 0:11:30]} Ncxe5 {[%emt 0:08:30]} 17. Ne4 {[%emt 0:10:30]} Be7 {[%emt 0:09:30]} 18. Bg5 {[%emt 0:03:30]} Bxg5 {[%emt 0:04:30]} 19. Nxg5 {[%emt 0:00:30]} O-O-O {[%emt 0:00:30]} 20. Nxf7 {[%emt 0:00:30]} Nxf7 {[%emt 0:00:00]} 21. Rxf7 {[%emt 0:00:30]} Qd5 {[%emt 0:01:00]} 22. Nf3 {[%emt 0:18:30]} Rdf8 {[%emt 0:02:30]} 23. Rf4 {[%emt 0:05:30]} Rxf4 {[%emt 0:05:30]} 24. Qxf4 {[%emt 0:00:30]} Rf8 {[%emt 0:00:30]} 25. Qe3 {[%emt 0:00:30]} e5 {[%emt 0:05:30]} 26. c4 {[%emt 0:03:30]} Qc5 {[%emt 0:00:30]} 27. Qe4 {[%emt 0:02:30]} Kc7 {[%emt 0:03:30]} 28. Re1 {[%emt 0:02:30]} Qc6 {[%emt 0:09:30]} 29. Qh4 {[%emt 0:02:30]} h5 {[%emt 0:11:30]} 30. b3 {[%emt 0:01:30]} Rf4 {[%emt 0:03:30]} 31. Qg5 {[%emt 0:00:30]} Qd6 {[%emt 0:03:30]} 32. Qg3 {[%emt 0:06:42]} Qd3 {[%emt 0:01:30]} 33. Kg1 {[%emt 0:03:02]} Re4 {[%emt 0:11:00]} 34. Rxe4 {[%emt 0:02:10]} Qxe4 {[%emt 0:00:03]} 35. h4 {[%emt 0:06:18]} a5 {[%emt 0:00:55]} 36. Qe1 {[%emt 0:02:04]} Qd3 {[%emt 0:00:55]} 37. Qd2 {[%emt 0:00:40]} Qb1+ {[%emt 0:00:35]} 38. Kh2 {[%emt 0:00:28]} Qe4 {[%emt 0:00:32]} 39. Qg5 {[%emt 0:02:27]} Kd6 {[%emt 0:00:32]} 40. Qd2+ {[%emt 0:00:32]} Kc6 {[%emt 0:00:17]} 41. Kg1 {[%emt 0:02:12]} a4 {[%emt 0:03:19]} 42. Ng5 {[%emt 0:01:33]} Qb1+ {[%emt 0:03:34]} 43. Kh2 {[%emt 0:01:03]} Nf6 {[%emt 0:00:03]} 44. b4 {[%emt 0:01:02]} Qf5 {[%emt 0:02:11]} 45. c5 {[%emt 0:01:39]} bxc5 {[%emt 0:03:08]} 46. bxc5 {[%emt 0:00:06]} Nd5 {[%emt 0:01:18]} 47. Qa5 {[%emt 0:00:55]} Qf4+ {[%emt 0:00:27]} 48. g3 {[%emt 0:00:52]} Qf2+ {[%emt 0:00:49]} 49. Kh3 {[%emt 0:00:14]} Qf1+ {[%emt 0:00:50]} 50. Kh2 {[%emt 0:00:05]} Qc4 {[%emt 0:01:42]} 51. Qa8+ {[%emt 0:00:36]} Kxc5 {[%emt 0:00:01]} 52. Qa7+ {[%emt 0:00:58]} Kb4 {[%emt 0:00:17]} 53. Qb8+ {[%emt 0:00:14]} Ka3 {[%emt 0:00:25]} 54. Qxe5 {[%emt 0:00:31]} Kxa2 {[%emt 0:00:18]} 55. Ne4 {[%emt 0:00:58]} a3 {[%emt 0:01:30]} 56. Nd2 {[%emt 0:00:28]} Qd3 {[%emt 0:00:26]} 57. Ne4 {[%emt 0:00:33]} Qc2+ {[%emt 0:01:24]} 58. Kh3 {[%emt 0:00:28]} Qd1 {[%emt 0:00:07]} 59. Nc3+ {[%emt 0:00:17]} Nxc3 {[%emt 0:00:08]} 0-1

[Event "25th Bosnjaci Open 2020"]
[Site "Bosnjaci"]
[Date "2020.01.06"]
[Round "6.6"]
[White "Jakovljevic, Vlado"]
[Black "Blagojevic, Marijan"]
[Result "1/2-1/2"]
[ECO "E62"]
[WhiteElo "2351"]
[BlackElo "2164"]
[Annotator "ChessBase"]
[PlyCount "90"]
[EventDate "2020.01.03"]
[EventType "swiss"]
[EventCountry "CRO"]
[SourceTitle "playchess.com"]
[Source "ChessBase"]
[SourceQuality "1"]
[TimeControl "5400+30"]

1. Nf3 {[%emt 0:00:30]} g6 {[%emt 0:02:30]} 2. d4 {[%emt 0:00:00]} Bg7 {[%emt 0:00:30]} 3. c4 {[%emt 0:01:00]} d6 {[%emt 0:00:30]} 4. Nc3 {[%emt 0:02:30]} Nf6 {[%emt 0:00:30]} 5. g3 {[%emt 0:00:30]} O-O {[%emt 0:00:00]} 6. Bg2 {[%emt 0:00:00]} Nc6 {[%emt 0:00:00]} 7. O-O {[%emt 0:00:00]} e5 {[%emt 0:01:30]} 8. dxe5 {[%emt 0:01:30]} dxe5 {[%emt 0:00:30]} 9. Bg5 {[%emt 0:00:30]} Be6 {[%emt 0:03:30]} 10. Nd2 {[%emt 0:00:30]} h6 {[%emt 0:05:30]} 11. Bxf6 {[%emt 0:00:30]} Qxf6 {[%emt 0:01:30]} 12. Nd5 {[%emt 0:08:30]} Bxd5 {[%emt 0:10:30]} 13. cxd5 {[%emt 0:00:30]} Ne7 {[%emt 0:08:30]} 14. Rc1 {[%emt 0:05:30]} Rad8 {[%emt 0:15:30]} 15. Qb3 {[%emt 0:11:30]} Qa6 {[%emt 0:02:30]} 16. Rxc7 {[%emt 0:13:30]} Qxe2 {[%emt 0:01:30]} 17. Rxe7 {[%emt 0:02:30]} Qxd2 {[%emt 0:00:00]} 18. Rd1 {[%emt 0:02:30]} Qa5 {[%emt 0:02:00]} 19. Rxb7 {[%emt 0:00:30]} Rd6 {[%emt 0:04:30]} 20. Rc1 {[%emt 0:09:30]} Rfd8 {[%emt 0:01:30]} 21. a3 {[%emt 0:08:30]} Bf8 {[%emt 0:04:30]} 22. Qe3 {[%emt 0:07:30]} Rb6 {[%emt 0:01:30]} 23. Rxb6 {[%emt 0:01:30]} Qxb6 {[%emt 0:00:30]} 24. Qxb6 {[%emt 0:05:51]} axb6 {[%emt 0:00:30]} 25. Rc6 {[%emt 0:01:27]} Rd6 {[%emt 0:12:30]} 26. Kf1 {[%emt 0:03:12]} f5 {[%emt 0:00:30]} 27. Ke2 {[%emt 0:00:35]} Kf7 {[%emt 0:00:00]} 28. Rxd6 {[%emt 0:07:47]} Bxd6 {[%emt 0:00:00]} 29. f3 {[%emt 0:00:30]} Ke7 {[%emt 0:01:30]} 30. Kd3 {[%emt 0:01:58]} Bc5 {[%emt 0:00:30]} 31. Kc4 {[%emt 0:00:54]} Kd6 {[%emt 0:00:00]} 32. h3 {[%emt 0:00:27]} Be3 {[%emt 0:01:00]} 33. a4 {[%emt 0:00:25]} Bc1 {[%emt 0:01:08]} 34. b4 {[%emt 0:01:02]} Bd2 {[%emt 0:00:01]} 35. g4 {[%emt 0:00:00]} Be1 {[%emt 0:00:21]} 36. gxf5 {[%emt 0:01:00]} gxf5 {[%emt 0:00:30]} 37. Bf1 {[%emt 0:02:57]} e4 {[%emt 0:00:00]} 38. fxe4 {[%emt 0:00:00]} fxe4 {[%emt 0:00:00]} 39. Bg2 {[%emt 0:00:15]} e3 {[%emt 0:00:00]} 40. Bf3 {[%emt 0:00:40]} Bd2 {[%emt 0:00:00]} 41. h4 {[%emt 0:00:31]} Be1 {[%emt 0:00:30]} 42. h5 {[%emt 0:00:06]} Bd2 {[%emt 0:00:00]} 43. Kb5 {[%emt 0:01:36]} e2 {[%emt 0:01:00]} 44. Bxe2 {[%emt 0:00:02]} Kxd5 {[%emt 0:00:00]} 45. Bd1 {[%emt 0:01:00]} Kd6 {[%emt 0:00:00]} 1/2-1/2

[Event "25th Bosnjaci Open 2020"]
[Site "Bosnjaci"]
[Date "2020.01.06"]
[Round "6.9"]
[White "Stocko, Josip"]
[Black "Matic, Zeljko"]
[Result "1/2-1/2"]
[ECO "B06"]
[WhiteElo "2262"]
[BlackElo "2142"]
[Annotator "ChessBase"]
[PlyCount "47"]
[EventDate "2020.01.03"]
[EventType "swiss"]
[EventCountry "CRO"]
[SourceTitle "playchess.com"]
[Source "ChessBase"]
[SourceQuality "1"]
[TimeControl "5400+30"]

1. e4 {[%emt 0:00:30]} g6 {[%emt 0:00:30]} 2. d4 {[%emt 0:00:00]} Bg7 {[%emt 0:00:00]} 3. Nc3 {[%emt 0:00:00]} d6 {[%emt 0:01:00]} 4. Be3 {[%emt 0:00:00]} a6 {[%emt 0:00:00]} 5. Qd2 {[%emt 0:01:00]} Nd7 {[%emt 0:00:00]} 6. Nf3 {[%emt 0:00:30]} b5 {[%emt 0:01:30]} 7. Bd3 {[%emt 0:02:30]} c5 {[%emt 0:21:30]} 8. dxc5 {[%emt 0:16:30]} dxc5 {[%emt 0:04:30]} 9. O-O {[%emt 0:04:30]} Ngf6 {[%emt 0:28:30]} 10. h3 {[%emt 0:26:30]} Qc7 {[%emt 0:01:30]} 11. Bh6 {[%emt 0:13:30]} O-O {[%emt 0:00:30]} 12. Rfe1 {[%emt 0:03:30]} e5 {[%emt 0:03:30]} 13. Bf1 {[%emt 0:07:30]} Bb7 {[%emt 0:03:30]} 14. Bxg7 {[%emt 0:06:47]} Kxg7 {[%emt 0:00:30]} 15. a4 {[%emt 0:01:37]} b4 {[%emt 0:00:30]} 16. Nd5 {[%emt 0:00:12]} Nxd5 {[%emt 0:01:30]} 17. exd5 {[%emt 0:00:07]} Qd6 {[%emt 0:00:30]} 18. Rad1 {[%emt 0:04:45]} f6 {[%emt 0:00:30]} 19. c4 {[%emt 0:04:17]} Rae8 {[%emt 0:00:30]} 20. Qc2 {[%emt 0:00:46]} Rf7 {[%emt 0:00:30]} 21. h4 {[%emt 0:00:25]} Nf8 {[%emt 0:01:30]} 22. Nd2 {[%emt 0:00:59]} f5 {[%emt 0:00:30]} 23. Nb3 {[%emt 0:01:03]} Bc8 {[%emt 0:00:30]} 24. Qd2 {[%emt 0:01:34]} 1/2-1/2